fUSD/lending_fUSD_20260617
["ID","MTS","AMOUNT","RATE_DAILY","PERIOD"]
[425310999,1781691043000,-152.0,0.00024627,2]
[425310998,1781691043000,-152.0,0.00024627,2]
[425311000,1781691043000,-152.0,0.00024627,2]
[425311005,1781691043000,-151.0,0.00024682,2]
[425311004,1781691043000,-156.80870372,0.00024682,2]
[425310967,1781691043000,-156.80870372,0.00024627,2]
[425310997,1781691043000,-500.0,0.00024627,2]
[425310984,1781691043000,-670.58624095,0.00024627,2]
[425311001,1781691043000,-152.0,0.00024627,2]
[425310986,1781691043000,-500.0,0.00024627,2]
[425310985,1781691043000,-500.0,0.00024627,2]
[425310965,1781691043000,-113576.6769,0.00024467,2]
[425310969,1781691043000,-663.5190383,0.00024627,2]
[425311003,1781691043000,-1000.0,0.00024658,2]
[425310973,1781691043000,-500.0,0.00024627,2]
[425310979,1781691043000,-500.0,0.00024627,2]
[425310977,1781691043000,-500.0,0.00024627,2]
[425310978,1781691043000,-152.0,0.00024627,2]
[425310972,1781691043000,-151.0,0.00024627,2]
[425310974,1781691043000,-500.0,0.00024627,2]
[425310976,1781691043000,-151.0,0.00024627,2]
[425310981,1781691043000,-500.0,0.00024627,2]
[425310980,1781691043000,-152.0,0.00024627,2]
[425310993,1781691043000,-152.0,0.00024627,2]
[425310983,1781691043000,-152.0,0.00024627,2]
[425310975,1781691043000,-203.56087746,0.00024627,2]
[425310982,1781691043000,-151.0,0.00024627,2]
[425311049,1781691044000,-152.0,0.00025857,30]
[425311043,1781691044000,-174.61919142,0.00025723,2]
[425311042,1781691044000,-185.05,0.00025591,2]
[425311041,1781691044000,-5000.0,0.00025531,2]
[425311040,1781691044000,-5000.0,0.00025531,2]
[425311031,1781691044000,-151.0,0.00025287,2]
[425311038,1781691044000,-5000.0,0.00025531,2]
[425311036,1781691044000,-350.0,0.0002553,6]
[425311044,1781691044000,-151.0,0.00025723,2]
[425311035,1781691044000,-1322.03,0.000255,7]
[425311039,1781691044000,-5000.0,0.00025531,2]
[425311050,1781691044000,-2000.0,0.000259,2]
[425311052,1781691044000,-350.0,0.00026136,7]
[425311046,1781691044000,-568.74,0.00025786,2]
[425311047,1781691044000,-17778.3,0.00025786,2]
[425311048,1781691044000,-949.0,0.000258,2]
[425311051,1781691044000,-500.0,0.00025942,2]
[425311059,1781691044000,-350.0,0.00026725,8]
[425311053,1781691044000,-151.0,0.00026271,2]
[425311056,1781691044000,-150.0,0.00026579,5]
[425311054,1781691044000,-224.5,0.00026296,2]
[425311058,1781691044000,-150.0,0.00026641,2]
[425311057,1781691044000,-152.0,0.00026636,4]
[425311055,1781691044000,-485.844,0.000264,2]
[425311037,1781691044000,-5012.72868597,0.00025531,2]
[425311045,1781691044000,-2165.73,0.00025786,2]
[425311033,1781691044000,-150.0,0.00025373,2]
[425311011,1781691044000,-151.0,0.00024847,2]
[425311032,1781691044000,-152.0,0.00025336,3]
[425311012,1781691044000,-150.0,0.000249,14]
[425311013,1781691044000,-151.0,0.00024902,2]
[425311014,1781691044000,-350.0,0.00024907,6]
[425311015,1781691044000,-151.0,0.00024957,2]
[425311006,1781691044000,-156.80870372,0.00024737,2]
[425311016,1781691044000,-183.14440784,0.00024987,2]
[425311007,1781691044000,-151.0,0.00024737,2]
[425311008,1781691044000,-156.80870379,0.00024792,2]
[425311060,1781691044000,-1359.0,0.00026762,2]
[425311010,1781691044000,-485.844,0.000248,2]
[425311009,1781691044000,-151.0,0.00024792,2]
[425311017,1781691044000,-9941.06347516,0.00025,2]
[425311020,1781691044000,-673.0,0.00025,2]
[425311019,1781691044000,-200.0,0.00025,10]
[425311018,1781691044000,-572.0,0.00025,2]
[425311024,1781691044000,-300.0,0.000251,10]
[425311028,1781691044000,-151.0,0.00025177,2]
[425311022,1781691044000,-151.0,0.00025012,2]
[425311021,1781691044000,-269.0,0.00025,2]
[425311025,1781691044000,-151.0,0.00025122,2]
[425311026,1781691044000,-181.08010149,0.00025175,2]
[425311027,1781691044000,-151.0,0.00025175,2]
[425311023,1781691044000,-151.0,0.00025067,2]
[425311030,1781691044000,-151.0,0.00025232,2]
[425311029,1781691044000,-500.0,0.00025186,2]
[425311034,1781691044000,-433.05,0.0002542,120]
[425311062,1781691044000,-517.47510178,0.00026769,2]
[425311061,1781691044000,-6079.0,0.00026762,2]
[425311066,1781691044000,-517.47510178,0.0002684,2]
[425311093,1781691044000,-150.39539877,0.00027045,7]
[425311092,1781691044000,-156.39211703,0.00027045,7]
[425311094,1781691044000,-517.47510178,0.000272,2]
[425311098,1781691044000,-161.77508581,0.00027329,2]
[425311108,1781691044000,-1000.0,0.00027397,2]
[425311097,1781691044000,-517.47510178,0.0002731,2]
[425311099,1781691044000,-599.60298507,0.00027366,2]
[425311100,1781691044000,-695.39793187,0.00027366,2]
[425311105,1781691044000,-1000.0,0.00027397,2]
[425311102,1781691044000,-299.85582701,0.00027397,2]
[425311107,1781691044000,-1000.0,0.00027397,2]
[425311103,1781691044000,-1000.0,0.00027397,2]
[425311091,1781691044000,-198.71771773,0.00027045,7]
[425311104,1781691044000,-1000.0,0.00027397,2]
[425311110,1781691044000,-1000.0,0.00027397,2]
[425311109,1781691044000,-1000.0,0.00027397,2]
[425311112,1781691044000,-1000.0,0.00027397,2]
[425311111,1781691044000,-1000.0,0.00027397,2]
[425311116,1781691044000,-1000.0,0.00027397,2]
[425311115,1781691044000,-1000.0,0.00027397,2]
[425311119,1781691044000,-1000.0,0.00027397,2]
[425311113,1781691044000,-1000.0,0.00027397,2]
[425311114,1781691044000,-1000.0,0.00027397,2]
[425311117,1781691044000,-1000.0,0.00027397,2]
[425311118,1781691044000,-1000.0,0.00027397,2]
[425311063,1781691044000,-517.47510178,0.00026778,2]
[425311106,1781691044000,-1000.0,0.00027397,2]
[425311095,1781691044000,-500.0,0.00027267,2]
[425311101,1781691044000,-151.0,0.00027367,2]
[425311085,1781691044000,-175.18222063,0.00027012,7]
[425311088,1781691044000,-205.73577779,0.00027045,7]
[425311064,1781691044000,-517.47510178,0.00026809,2]
[425311065,1781691044000,-151.0,0.00026819,2]
[425311071,1781691044000,-1322.03,0.000269,7]
[425311070,1781691044000,-160.9214746,0.00026888,60]
[425311068,1781691044000,-933.0,0.00026856,5]
[425311073,1781691044000,-1007.02,0.00026945,120]
[425311072,1781691044000,-517.47510178,0.00026936,2]
[425311069,1781691044000,-1474.0,0.00026856,5]
[425311074,1781691044000,-178.11861292,0.0002701,7]
[425311075,1781691044000,-155.93754451,0.0002701,7]
[425311076,1781691044000,-154.94428094,0.0002701,7]
[425311077,1781691044000,-157.7912746,0.0002701,7]
[425311067,1781691044000,-517.47510178,0.00026856,2]
[425311096,1781691044000,-350.0,0.00027298,9]
[425311078,1781691044000,-158.33469908,0.0002701,7]
[425311086,1781691044000,-517.47510178,0.00027023,2]
[425311089,1781691044000,-215.08418389,0.00027045,7]
[425311087,1781691044000,-168.31845219,0.00027045,7]
[425311084,1781691044000,-221.22974049,0.0002701,7]
[425311090,1781691044000,-216.70123366,0.00027045,7]
[425311082,1781691044000,-215.50333395,0.0002701,7]
[425311083,1781691044000,-154.78703372,0.0002701,7]
[425311080,1781691044000,-172.35274728,0.0002701,2]
[425311079,1781691044000,-188.37707186,0.0002701,7]
[425311081,1781691044000,-217.07802126,0.0002701,7]
[425311159,1781691045000,-226.81,0.00027672,7]
[425311162,1781691045000,-226.79,0.00027702,30]
[425311157,1781691045000,-226.79,0.00027641,2]
[425311164,1781691045000,-646.94,0.00027711,7]
[425311169,1781691045000,-1960.8,0.00027711,7]
[425311150,1781691045000,-3927.98,0.0002755,30]
[425311152,1781691045000,-226.79,0.0002758,7]
[425311153,1781691045000,-226.81,0.00027611,30]
[425311154,1781691045000,-226.79,0.00027611,30]
[425311155,1781691045000,-1007.02,0.0002763,120]
[425311151,1781691045000,-226.81,0.0002758,7]
[425311156,1781691045000,-226.81,0.00027641,2]
[425311161,1781691045000,-226.81,0.00027702,30]
[425311173,1781691045000,-226.81,0.00027733,2]
[425311163,1781691045000,-7270.33,0.00027711,7]
[425311160,1781691045000,-226.79,0.00027672,7]
[425311165,1781691045000,-1984.97,0.00027711,7]
[425311172,1781691045000,-200.0,0.00027722,2]
[425311180,1781691045000,-226.81,0.00027824,2]
[425311183,1781691045000,-226.79,0.00027855,7]
[425311171,1781691045000,-3927.98,0.00027711,7]
[425311179,1781691045000,-226.79,0.00027794,30]
[425311174,1781691045000,-226.79,0.00027733,2]
[425311182,1781691045000,-226.81,0.00027855,7]
[425311181,1781691045000,-226.79,0.00027824,2]
[425311176,1781691045000,-226.81,0.00027763,7]
[425311168,1781691045000,-648.32,0.00027711,7]
[425311147,1781691045000,-226.79,0.0002755,2]
[425311120,1781691045000,-1000.0,0.00027397,2]
[425311149,1781691045000,-1960.8,0.0002755,30]
[425311175,1781691045000,-517.47510178,0.00027754,2]
[425311122,1781691045000,-1000.0,0.00027397,2]
[425311121,1781691045000,-1000.0,0.00027397,2]
[425311123,1781691045000,-1000.0,0.00027397,2]
[425311124,1781691045000,-1000.0,0.00027397,2]
[425311125,1781691045000,-1000.0,0.00027397,2]
[425311126,1781691045000,-1000.0,0.00027397,2]
[425311128,1781691045000,-1000.0,0.00027397,2]
[425311129,1781691045000,-1000.0,0.00027397,2]
[425311131,1781691045000,-1000.0,0.00027397,2]
[425311127,1781691045000,-1000.0,0.00027397,2]
[425311130,1781691045000,-1000.0,0.00027397,2]
[425311133,1781691045000,-1000.0,0.00027397,2]
[425311132,1781691045000,-1000.0,0.00027397,2]
[425311134,1781691045000,-1000.0,0.00027397,2]
[425311143,1781691045000,-7270.33,0.0002755,30]
[425311138,1781691045000,-198.63378564,0.00027397,7]
[425311139,1781691045000,-517.47510178,0.00027493,2]
[425311136,1781691045000,-604.91436295,0.00027397,2]
[425311137,1781691045000,-12176.62,0.00027397,10]
[425311135,1781691045000,-1500.0,0.00027397,2]
[425311140,1781691045000,-500.0,0.000275,7]
[425311142,1781691045000,-183.14440784,0.00027508,2]
[425311141,1781691045000,-412.0,0.000275,7]
[425311144,1781691045000,-226.81,0.0002755,2]
[425311145,1781691045000,-646.94,0.0002755,30]
[425311146,1781691045000,-1984.97,0.0002755,30]
[425311148,1781691045000,-648.32,0.0002755,30]
[425311178,1781691045000,-226.81,0.00027794,30]
[425311158,1781691045000,-150.0,0.00027642,5]
[425311184,1781691045000,-350.0,0.00027855,10]
[425311220,1781691045000,-226.79,0.00028068,30]
[425311219,1781691045000,-226.81,0.00028068,30]
[425311212,1781691045000,-1984.97,0.00028033,30]
[425311216,1781691045000,-226.81,0.00028038,7]
[425311213,1781691045000,-648.32,0.00028033,30]
[425311218,1781691045000,-517.47510178,0.00028054,2]
[425311222,1781691045000,-226.81,0.00028099,2]
[425311232,1781691045000,-1960.8,0.00028194,7]
[425311225,1781691045000,-226.87,0.0002813,7]
[425311228,1781691045000,-645.87,0.00028194,7]
[425311223,1781691045000,-226.79,0.00028099,2]
[425311226,1781691045000,-517.47510178,0.00028176,2]
[425311221,1781691045000,-1007.02,0.00028096,120]
[425311224,1781691045000,-226.94,0.0002813,7]
[425311230,1781691045000,-1984.97,0.00028194,7]
[425311231,1781691045000,-648.32,0.00028194,7]
[425311229,1781691045000,-646.94,0.00028194,7]
[425311227,1781691045000,-7270.33,0.00028194,7]
[425311239,1781691045000,-356.23722585,0.0002829,7]
[425311233,1781691045000,-3927.98,0.00028194,7]
[425311242,1781691045000,-315.58254919,0.0002829,7]
[425311234,1781691045000,-1322.03,0.000282,7]
[425311240,1781691045000,-311.87508902,0.0002829,7]
[425311236,1781691045000,-500.0,0.00028256,60]
[425311235,1781691045000,-571.62447662,0.00028256,60]
[425311238,1781691045000,-300.0,0.00028279,7]
[425311237,1781691045000,-224.5,0.00028267,2]
[425311217,1781691045000,-226.79,0.00028038,7]
[425311210,1781691045000,-7270.33,0.00028033,30]
[425311177,1781691045000,-226.79,0.00027763,7]
[425311215,1781691045000,-3927.98,0.00028033,30]
[425311211,1781691045000,-646.94,0.00028033,30]
[425311187,1781691045000,-1984.97,0.00027872,2]
[425311193,1781691045000,-151.0,0.00027915,2]
[425311185,1781691045000,-7270.33,0.00027872,2]
[425311196,1781691045000,-152.0,0.00027936,5]
[425311195,1781691045000,-226.79,0.00027916,2]
[425311192,1781691045000,-226.79,0.00027885,30]
[425311190,1781691045000,-3927.98,0.00027872,2]
[425311188,1781691045000,-648.32,0.00027872,2]
[425311186,1781691045000,-646.94,0.00027872,2]
[425311191,1781691045000,-226.81,0.00027885,30]
[425311189,1781691045000,-1960.8,0.00027872,2]
[425311241,1781691045000,-309.88856187,0.0002829,7]
[425311194,1781691045000,-226.81,0.00027916,2]
[425311206,1781691045000,-485.844,0.00028,2]
[425311198,1781691045000,-226.81,0.00027946,7]
[425311209,1781691045000,-226.79,0.00028007,2]
[425311200,1781691045000,-700.7323661,0.00027951,2]
[425311201,1781691045000,-150.0,0.00027973,2]
[425311202,1781691045000,-226.81,0.00027977,30]
[425311203,1781691045000,-226.79,0.00027977,30]
[425311204,1781691045000,-274.36,0.00027978,10]
[425311214,1781691045000,-1960.8,0.00028033,30]
[425311205,1781691045000,-7000.0,0.00028,4]
[425311197,1781691045000,-240.49,0.00027939,2]
[425311208,1781691045000,-226.81,0.00028007,2]
[425311207,1781691045000,-1000.0,0.00028,28]
[425311199,1781691045000,-226.79,0.00027946,7]
[425311296,1781691046000,-3927.98,0.00028677,7]
[425311307,1781691046000,-592.27,0.00028726,7]
[425311299,1781691046000,-592.27,0.00028726,7]
[425311298,1781691046000,-592.27,0.00028726,7]
[425311291,1781691046000,-200.0,0.0002852,2]
[425311292,1781691046000,-200.0,0.00028521,2]
[425311290,1781691046000,-200.0,0.0002852,2]
[425311293,1781691046000,-623.54,0.000286,2]
[425311287,1781691046000,-3927.98,0.00028516,30]
[425311288,1781691046000,-200.0,0.00028519,2]
[425311297,1781691046000,-592.5,0.00028726,7]
[425311289,1781691046000,-200.0,0.00028519,2]
[425311308,1781691046000,-592.27,0.00028726,7]
[425311313,1781691046000,-592.27,0.00028726,7]
[425311300,1781691046000,-592.27,0.00028726,7]
[425311302,1781691046000,-592.27,0.00028726,7]
[425311301,1781691046000,-592.27,0.00028726,7]
[425311304,1781691046000,-592.27,0.00028726,7]
[425311303,1781691046000,-592.27,0.00028726,7]
[425311306,1781691046000,-592.27,0.00028726,7]
[425311310,1781691046000,-592.27,0.00028726,7]
[425311309,1781691046000,-592.27,0.00028726,7]
[425311320,1781691046000,-592.27,0.00028726,7]
[425311311,1781691046000,-592.27,0.00028726,7]
[425311321,1781691046000,-592.27,0.00028726,7]
[425311312,1781691046000,-592.27,0.00028726,7]
[425311286,1781691046000,-1960.8,0.00028516,30]
[425311305,1781691046000,-592.27,0.00028726,7]
[425311294,1781691046000,-1007.02,0.00028671,120]
[425311267,1781691046000,-300.79079754,0.00028326,7]
[425311285,1781691046000,-1984.97,0.00028516,30]
[425311319,1781691046000,-592.27,0.00028726,7]
[425311243,1781691046000,-316.66939815,0.0002829,7]
[425311250,1781691046000,-350.36444126,0.00028292,7]
[425311246,1781691046000,-434.15604253,0.0002829,7]
[425311257,1781691046000,-397.43543546,0.00028326,7]
[425311245,1781691046000,-344.70549456,0.0002829,2]
[425311251,1781691046000,-336.63690439,0.00028326,7]
[425311255,1781691046000,-168.35468488,0.00028326,7]
[425311253,1781691046000,-430.16836778,0.00028326,7]
[425311248,1781691046000,-309.57406745,0.0002829,7]
[425311247,1781691046000,-431.0066679,0.0002829,7]
[425311252,1781691046000,-411.47155558,0.00028326,7]
[425311254,1781691046000,-433.40246733,0.00028326,7]
[425311249,1781691046000,-442.45948099,0.0002829,7]
[425311261,1781691046000,-397.26757127,0.00028326,7]
[425311265,1781691046000,-159.89067971,0.00028326,7]
[425311271,1781691046000,-1984.97,0.00028355,2]
[425311263,1781691046000,-312.78423405,0.00028326,7]
[425311259,1781691046000,-176.10854642,0.00028326,7]
[425311269,1781691046000,-7270.33,0.00028355,2]
[425311273,1781691046000,-1960.8,0.00028355,2]
[425311275,1781691046000,-3927.98,0.00028355,2]
[425311279,1781691046000,-200.0,0.00028462,2]
[425311277,1781691046000,-350.0,0.00028397,11]
[425311282,1781691046000,-151.0,0.00028463,2]
[425311284,1781691046000,-2032.96,0.00028516,30]
[425311295,1781691046000,-7270.33,0.00028677,7]
[425311283,1781691046000,-7270.33,0.00028516,30]
[425311244,1781691046000,-376.75414372,0.0002829,7]
[425311314,1781691046000,-592.27,0.00028726,7]
[425311315,1781691046000,-592.27,0.00028726,7]
[425311351,1781691046000,-152.0,0.00028985,30]
[425311355,1781691046000,-431.00079052,0.00029,2]
[425311354,1781691046000,-1000.0,0.00029,2]
[425311352,1781691046000,-297.0,0.00028985,30]
[425311356,1781691046000,-1503.51031067,0.00029,2]
[425311353,1781691046000,-401.89,0.00029,2]
[425311357,1781691046000,-220.0442745,0.00029,2]
[425311362,1781691046000,-188.09339996,0.00029,2]
[425311359,1781691046000,-1252.25327799,0.00029,7]
[425311360,1781691046000,-191.80540898,0.00029,2]
[425311361,1781691046000,-250.01993717,0.00029,2]
[425311358,1781691046000,-73441.60024618,0.00029,2]
[425311365,1781691046000,-941.19669631,0.00029,2]
[425311363,1781691046000,-500.0,0.00029,2]
[425311366,1781691046000,-930.55983482,0.00029,2]
[425311364,1781691046000,-1153.93392614,0.00029,2]
[425311367,1781691046000,-930.02799174,0.00029,2]
[425311370,1781691046000,-930.0000035,0.00029,2]
[425311373,1781691046000,-300.0,0.00029,2]
[425311374,1781691046000,-500.0,0.00029,2]
[425311372,1781691046000,-930.00000001,0.00029,2]
[425311369,1781691046000,-930.00006998,0.00029,2]
[425311377,1781691046000,-204.696023,0.00029,3]
[425311371,1781691046000,-930.00000017,0.00029,2]
[425311376,1781691046000,-7999.0,0.00029,2]
[425311375,1781691046000,-500.0,0.00029,2]
[425311317,1781691046000,-592.27,0.00028726,7]
[425311350,1781691046000,-253.0,0.00028985,30]
[425311348,1781691046000,-156.0,0.00028985,30]
[425311368,1781691046000,-930.00139959,0.00029,2]
[425311347,1781691046000,-166.0,0.00028985,30]
[425311349,1781691046000,-157.0,0.00028985,30]
[425311318,1781691046000,-592.27,0.00028726,7]
[425311322,1781691046000,-592.27,0.00028726,7]
[425311327,1781691046000,-1036.94,0.000288,30]
[425311323,1781691046000,-592.27,0.00028726,7]
[425311330,1781691046000,-273.0,0.00028862,2]
[425311332,1781691046000,-200.0,0.000289,2]
[425311326,1781691046000,-218.56443812,0.00028767,2]
[425311333,1781691046000,-623.54,0.000289,2]
[425311324,1781691046000,-604.91436295,0.00028766,2]
[425311331,1781691046000,-340.0,0.000289,2]
[425311329,1781691046000,-3927.98,0.00028838,2]
[425311328,1781691046000,-7270.33,0.00028838,2]
[425311325,1781691046000,-500.0,0.00028767,2]
[425311316,1781691046000,-592.27,0.00028726,7]
[425311342,1781691046000,-155.0,0.00028985,30]
[425311343,1781691046000,-554.0,0.00028985,30]
[425311336,1781691046000,-2355.0,0.0002894,3]
[425311345,1781691046000,-152.0,0.00028985,30]
[425311335,1781691046000,-350.0,0.00028925,12]
[425311339,1781691046000,-156.0,0.00028966,30]
[425311341,1781691046000,-151.0,0.00028985,30]
[425311344,1781691046000,-666.0,0.00028985,30]
[425311337,1781691046000,-160.0,0.00028955,3]
[425311340,1781691046000,-168.0,0.00028971,5]
[425311334,1781691046000,-200.0,0.000289,2]
[425311346,1781691046000,-153.0,0.00028985,30]
[425311338,1781691046000,-156.0,0.00028966,30]
[425311418,1781691047000,-202.62900276,0.00029144,7]
[425311420,1781691047000,-534.35583877,0.00029144,7]
[425311419,1781691047000,-247.29295381,0.00029144,7]
[425311409,1781691047000,-3927.98,0.00029,30]
[425311416,1781691047000,-160.7057116,0.00029143,7]
[425311410,1781691047000,-1132.77875939,0.00029,10]
[425311415,1781691047000,-1611.13,0.00029109,2]
[425311413,1781691047000,-1036.94,0.0002906,30]
[425311412,1781691047000,-161.98035939,0.00029011,2]
[425311411,1781691047000,-3363.67760387,0.00029003,2]
[425311421,1781691047000,-286.52002961,0.00029144,7]
[425311414,1781691047000,-2000.0,0.000291,2]
[425311422,1781691047000,-467.81263353,0.00029144,7]
[425311424,1781691047000,-249.22485625,0.00029144,7]
[425311425,1781691047000,-464.83284281,0.00029144,7]
[425311428,1781691047000,-473.37382379,0.00029144,7]
[425311423,1781691047000,-202.69981592,0.00029144,7]
[425311427,1781691047000,-233.0234632,0.00029144,7]
[425311429,1781691047000,-281.84438124,0.00029144,7]
[425311430,1781691047000,-232.01294771,0.00029144,7]
[425311432,1781691047000,-475.00409723,0.00029144,7]
[425311437,1781691047000,-217.74934537,0.00029144,7]
[425311439,1781691047000,-517.05824185,0.00029144,2]
[425311434,1781691047000,-270.85857834,0.00029144,7]
[425311431,1781691047000,-268.3184011,0.00029144,7]
[425311407,1781691047000,-151.0,0.00029,7]
[425311426,1781691047000,-245.6203648,0.00029144,7]
[425311417,1781691047000,-168.11189665,0.00029143,7]
[425311381,1781691047000,-151.0,0.00029,7]
[425311406,1781691047000,-151.0,0.00029,7]
[425311380,1781691047000,-204.696023,0.00029,3]
[425311378,1781691047000,-204.696023,0.00029,3]
[425311379,1781691047000,-204.696023,0.00029,3]
[425311383,1781691047000,-151.0,0.00029,7]
[425311389,1781691047000,-151.0,0.00029,7]
[425311385,1781691047000,-500.0,0.00029,2]
[425311386,1781691047000,-151.0,0.00029,7]
[425311388,1781691047000,-151.0,0.00029,7]
[425311393,1781691047000,-575.906456,0.00029,7]
[425311384,1781691047000,-151.0,0.00029,7]
[425311392,1781691047000,-575.906456,0.00029,7]
[425311391,1781691047000,-575.906456,0.00029,7]
[425311390,1781691047000,-151.0,0.00029,7]
[425311382,1781691047000,-151.0,0.00029,7]
[425311387,1781691047000,-500.0,0.00029,2]
[425311405,1781691047000,-151.0,0.00029,7]
[425311395,1781691047000,-693.686801,0.00029,7]
[425311394,1781691047000,-575.906456,0.00029,7]
[425311398,1781691047000,-693.686801,0.00029,7]
[425311397,1781691047000,-693.686801,0.00029,7]
[425311396,1781691047000,-693.686801,0.00029,7]
[425311399,1781691047000,-500.0,0.00029,2]
[425311403,1781691047000,-151.0,0.00029,7]
[425311401,1781691047000,-2315.05,0.00029,30]
[425311400,1781691047000,-1153.0,0.00029,2]
[425311404,1781691047000,-151.0,0.00029,7]
[425311402,1781691047000,-7270.33,0.00029,30]
[425311408,1781691047000,-500.0,0.00029,2]
[425311435,1781691047000,-267.34638923,0.00029144,5]
[425311433,1781691047000,-225.79632064,0.00029144,7]
[425311436,1781691047000,-565.13121558,0.00029144,7]
[425311467,1781691047000,-279.59930187,0.00029146,7]
[425311468,1781691047000,-525.5466619,0.00029146,7]
[425311472,1781691047000,-214.85452329,0.0002918,7]
[425311473,1781691047000,-645.25255167,0.0002918,7]
[425311471,1781691047000,-406.37731511,0.0002918,7]
[425311474,1781691047000,-650.10370099,0.0002918,7]
[425311477,1781691047000,-265.15714286,0.0002918,7]
[425311479,1781691047000,-228.60821958,0.0002918,7]
[425311481,1781691047000,-336.70936977,0.0002918,7]
[425311482,1781691047000,-297.95197213,0.0002918,7]
[425311480,1781691047000,-279.18327601,0.0002918,7]
[425311488,1781691047000,-319.78135943,0.0002918,7]
[425311486,1781691047000,-595.90135691,0.0002918,7]
[425311487,1781691047000,-469.17635108,0.0002918,7]
[425311485,1781691047000,-352.21709285,0.0002918,7]
[425311484,1781691047000,-596.15315319,0.0002918,7]
[425311489,1781691047000,-267.81914152,0.0002918,7]
[425311483,1781691047000,-295.21161636,0.0002918,7]
[425311491,1781691047000,-288.36044645,0.0002918,7]
[425311490,1781691047000,-295.02436299,0.0002918,7]
[425311495,1781691047000,-275.61500673,0.00029181,7]
[425311494,1781691047000,-218.32322346,0.00029181,7]
[425311496,1781691047000,-249.52945176,0.00029181,7]
[425311492,1781691047000,-213.15490276,0.0002918,7]
[425311497,1781691047000,-202.33211592,0.00029181,7]
[425311493,1781691047000,-276.09363638,0.0002918,7]
[425311438,1781691047000,-165.71292312,0.00029144,7]
[425311470,1781691047000,-617.20733337,0.0002918,7]
[425311475,1781691047000,-283.61778348,0.0002918,7]
[425311478,1781691047000,-263.11964535,0.0002918,7]
[425311465,1781691047000,-151.0,0.00029144,7]
[425311469,1781691047000,-504.95535658,0.0002918,7]
[425311441,1781691047000,-194.47476297,0.00029144,7]
[425311440,1781691047000,-218.69658761,0.00029144,7]
[425311450,1781691047000,-193.2779557,0.00029144,7]
[425311451,1781691047000,-290.46704533,0.00029144,7]
[425311449,1781691047000,-278.9760691,0.00029144,7]
[425311447,1781691047000,-225.43118096,0.00029144,2]
[425311442,1781691047000,-226.39764101,0.00029144,2]
[425311443,1781691047000,-249.41930434,0.00029144,2]
[425311445,1781691047000,-258.11336918,0.00029144,7]
[425311448,1781691047000,-227.38575425,0.00029144,7]
[425311444,1781691047000,-295.49476339,0.00029144,5]
[425311452,1781691047000,-651.23406379,0.00029144,7]
[425311454,1781691047000,-646.51000185,0.00029144,7]
[425311446,1781691047000,-234.21723798,0.00029144,7]
[425311476,1781691047000,-274.25616979,0.0002918,7]
[425311453,1781691047000,-289.45452257,0.00029144,7]
[425311466,1781691047000,-736.47,0.00029145,5]
[425311461,1781691047000,-151.0,0.00029144,7]
[425311458,1781691047000,-203.95916624,0.00029144,7]
[425311455,1781691047000,-288.69164135,0.00029144,7]
[425311459,1781691047000,-663.68922148,0.00029144,7]
[425311457,1781691047000,-218.10456732,0.00029144,7]
[425311462,1781691047000,-151.0,0.00029144,7]
[425311464,1781691047000,-151.0,0.00029144,7]
[425311460,1781691047000,-175.04625116,0.00029144,7]